[Event "Late-Titled-Tuesday-Blitz-March-05-2024"]
[Site "Chess.com"]
[Date "2024.03.05"]
[Round "8"]
[White "Shahdad2007"]
[Black "rychessmaster1"]
[Result "1-0"]
[WhiteElo "2595"]
[BlackElo "2718"]
[TimeControl "180+1"]
[EndTime "15:25:33 PST"]
[Termination "Shahdad2007 won by resignation"]

1. Nf3 {[%clk 0:03:00.9]} 1... d5 {[%clk 0:02:59.9]} 2. c4 {[%clk 0:03:00.6]}
2... d4 {[%clk 0:02:59.8]} 3. b4 {[%clk 0:02:59.5]} 3... c5 {[%clk 0:03:00.2]}
4. Qa4+ {[%clk 0:02:56.5]} 4... Bd7 {[%clk 0:02:48]} 5. b5 {[%clk 0:02:55.8]}
5... Qc7 {[%clk 0:02:41.7]} 6. g3 {[%clk 0:02:53.4]} 6... e5 {[%clk 0:02:37.4]}
7. d3 {[%clk 0:02:53.7]} 7... Bd6 {[%clk 0:02:36.5]} 8. Bg2 {[%clk 0:02:49.9]}
8... Nf6 {[%clk 0:02:35.2]} 9. Qc2 {[%clk 0:02:44.5]} 9... a6 {[%clk 0:02:28.1]}
10. Na3 {[%clk 0:02:34.3]} 10... axb5 {[%clk 0:02:21.9]} 11. Nxb5 {[%clk
0:02:33.1]} 11... Bxb5 {[%clk 0:02:22.3]} 12. cxb5 {[%clk 0:02:30]} 12... Qa5+
{[%clk 0:01:58.9]} 13. Nd2 {[%clk 0:02:27.9]} 13... Qxb5 {[%clk 0:01:59.4]} 14.
Rb1 {[%clk 0:02:20.9]} 14... Qa4 {[%clk 0:01:59.9]} 15. Qxa4+ {[%clk 0:02:13.7]}
15... Rxa4 {[%clk 0:02:00.8]} 16. a3 {[%clk 0:02:05.9]} 16... Nbd7 {[%clk
0:01:26.6]} 17. Rxb7 {[%clk 0:02:02.5]} 17... Ke7 {[%clk 0:01:27]} 18. Nc4
{[%clk 0:01:59.8]} 18... Ra6 {[%clk 0:01:25.9]} 19. O-O {[%clk 0:01:58.9]} 19...
Rb8 {[%clk 0:01:24]} 20. Rxb8 {[%clk 0:01:51.8]} 20... Nxb8 {[%clk 0:01:24.9]}
21. Bd2 {[%clk 0:01:44.3]} 21... Nc6 {[%clk 0:01:03.8]} 22. Rb1 {[%clk
0:01:43.7]} 22... Nd8 {[%clk 0:01:04.4]} 23. Ba5 {[%clk 0:01:38.1]} 23... Ne8
{[%clk 0:00:50.7]} 24. Bxd8+ {[%clk 0:01:26.6]} 24... Kxd8 {[%clk 0:00:51.6]}
25. Rb7 {[%clk 0:01:24.1]} 25... Bc7 {[%clk 0:00:43.7]} 26. h4 {[%clk
0:01:19.6]} 26... g6 {[%clk 0:00:34.6]} 27. Bd5 {[%clk 0:01:17.6]} 27... f5
{[%clk 0:00:31.2]} 28. Rb5 {[%clk 0:01:13]} 28... Nd6 {[%clk 0:00:29.4]} 29.
Nxd6 {[%clk 0:01:10.7]} 29... Bxd6 {[%clk 0:00:30.3]} 30. Rb7 {[%clk 0:01:05.7]}
30... Bc7 {[%clk 0:00:29.8]} 31. Rb3 {[%clk 0:01:06]} 31... h6 {[%clk
0:00:24.2]} 32. Kg2 {[%clk 0:01:02.8]} 32... g5 {[%clk 0:00:23.8]} 33. h5 {[%clk
0:00:57.2]} 33... Ke7 {[%clk 0:00:16.2]} 34. Bc4 {[%clk 0:00:50.3]} 34... Ra7
{[%clk 0:00:15.4]} 35. Rb5 {[%clk 0:00:46]} 35... Kd6 {[%clk 0:00:15.4]} 36. Kf3
{[%clk 0:00:43.5]} 36... Rxa3 {[%clk 0:00:15.4]} 37. g4 {[%clk 0:00:43.4]} 37...
e4+ {[%clk 0:00:14.5]} 38. Kg2 {[%clk 0:00:41.3]} 38... exd3 {[%clk 0:00:10.6]}
39. exd3 {[%clk 0:00:40.9]} 39... fxg4 {[%clk 0:00:10.9]} 40. Kg3 {[%clk
0:00:39.7]} 40... Ra1 {[%clk 0:00:10.2]} 41. Kxg4 {[%clk 0:00:39.5]} 41... Rh1
{[%clk 0:00:10.9]} 42. Rb2 {[%clk 0:00:33.8]} 42... Rh4+ {[%clk 0:00:11.4]} 43.
Kf5 {[%clk 0:00:29.7]} 43... Rxh5 {[%clk 0:00:12]} 44. Ra2 {[%clk 0:00:29.5]}
44... Rh2 {[%clk 0:00:11]} 45. Ra6+ {[%clk 0:00:29.4]} 45... Ke7 {[%clk
0:00:11.6]} 46. Re6+ {[%clk 0:00:28.2]} 46... Kf8 {[%clk 0:00:11.9]} 47. Kg6
{[%clk 0:00:24.8]} 47... Rxf2 {[%clk 0:00:10.8]} 48. Bb5 {[%clk 0:00:24.7]}
48... Kg8 {[%clk 0:00:09]} 49. Re8+ {[%clk 0:00:24.7]} 49... Rf8 {[%clk
0:00:09.5]} 50. Bc4+ {[%clk 0:00:25.6]} 1-0

[Event "Late-Titled-Tuesday-Blitz-March-05-2024"]
[Site "Chess.com"]
[Date "2024.03.05"]
[Round "8"]
[White "Akhayan"]
[Black "jinxy2009"]
[Result "0-1"]
[WhiteElo "2370"]
[BlackElo "2204"]
[TimeControl "180+1"]
[EndTime "15:25:33 PST"]
[Termination "jinxy2009 won on time"]

1. e4 {[%clk 0:02:44.1]} 1... c5 {[%clk 0:02:59.2]} 2. Nf3 {[%clk 0:02:43]} 2...
Nc6 {[%clk 0:02:59.6]} 3. Nc3 {[%clk 0:02:42.8]} 3... e5 {[%clk 0:02:59]} 4. Bc4
{[%clk 0:02:43]} 4... Be7 {[%clk 0:02:57.2]} 5. d3 {[%clk 0:02:43.5]} 5... Nf6
{[%clk 0:02:57.4]} 6. Ng5 {[%clk 0:02:40.1]} 6... O-O {[%clk 0:02:56.5]} 7. f4
{[%clk 0:02:40.8]} 7... exf4 {[%clk 0:02:43.4]} 8. Bxf4 {[%clk 0:02:35]} 8... d5
{[%clk 0:02:14.7]} 9. Nxd5 {[%clk 0:02:32.6]} 9... Nxd5 {[%clk 0:02:14.6]} 10.
Nxf7 {[%clk 0:02:26.6]} 10... Kxf7 {[%clk 0:01:29.9]} 11. exd5 {[%clk 0:02:20]}
11... b5 {[%clk 0:00:58.9]} 12. dxc6+ {[%clk 0:02:05.7]} 12... bxc4 {[%clk
0:00:58.5]} 13. O-O {[%clk 0:02:05.1]} 13... Kg8 {[%clk 0:00:49.5]} 14. c7
{[%clk 0:02:01.2]} 14... Qd4+ {[%clk 0:00:47.9]} 15. Kh1 {[%clk 0:01:55.3]}
15... Bb7 {[%clk 0:00:41.7]} 16. Bg3 {[%clk 0:01:46.6]} 16... Rxf1+ {[%clk
0:00:26.6]} 17. Qxf1 {[%clk 0:01:46.1]} 17... Rf8 {[%clk 0:00:27.1]} 18. Qe2
{[%clk 0:01:41]} 18... Bf6 {[%clk 0:00:13]} 19. dxc4 {[%clk 0:01:36.3]} 19...
Qxb2 {[%clk 0:00:12.9]} 20. Rf1 {[%clk 0:01:30.8]} 20... Qd4 {[%clk 0:00:11.3]}
21. Rb1 {[%clk 0:01:04.5]} 21... Qe4 {[%clk 0:00:08]} 22. Qxe4 {[%clk
0:00:17.1]} 22... Bxe4 {[%clk 0:00:08.9]} 23. Rb8 {[%clk 0:00:17.7]} 23... Bf5
{[%clk 0:00:08.2]} 24. Kg1 {[%clk 0:00:14.3]} 24... Bd4+ {[%clk 0:00:07.6]} 25.
Kh1 {[%clk 0:00:12.6]} 25... Bc8 {[%clk 0:00:03.6]} 26. h3 {[%clk 0:00:12.9]}
26... Rf1+ {[%clk 0:00:01]} 27. Kh2 {[%clk 0:00:13.2]} 27... Bg1+ {[%clk
0:00:01.8]} 28. Kh1 {[%clk 0:00:13.6]} 28... Bd4+ {[%clk 0:00:02.7]} 29. Kh2
{[%clk 0:00:13.9]} 29... Bg1+ {[%clk 0:00:01.7]} 30. Kh1 {[%clk 0:00:14.3]}
30... Be3+ {[%clk 0:00:02.6]} 31. Kh2 {[%clk 0:00:14.6]} 31... Rf8 {[%clk
0:00:03.5]} 32. c3 {[%clk 0:00:11.8]} 32... Kf7 {[%clk 0:00:02.3]} 33. Bd6
{[%clk 0:00:08.9]} 33... Re8 {[%clk 0:00:02.4]} 34. Kg3 {[%clk 0:00:07.9]} 34...
Ke6 {[%clk 0:00:02.8]} 35. Bf4 {[%clk 0:00:04.1]} 35... Bxf4+ {[%clk 0:00:02.1]}
36. Kxf4 {[%clk 0:00:04.8]} 36... Kd7 {[%clk 0:00:02.7]} 37. Rb5 {[%clk
0:00:04.3]} 37... Kc6 {[%clk 0:00:02.7]} 38. Rxc5+ {[%clk 0:00:05]} 38... Kxc5
{[%clk 0:00:02.8]} 0-1

[Event "Late-Titled-Tuesday-Blitz-March-05-2024"]
[Site "Chess.com"]
[Date "2024.03.05"]
[Round "8"]
[White "K_A_S_T_O_R"]
[Black "XDPS"]
[Result "1-0"]
[WhiteElo "2844"]
[BlackElo "2898"]
[TimeControl "180+1"]
[EndTime "15:25:34 PST"]
[Termination "K_A_S_T_O_R won on time"]

1. e4 {[%clk 0:03:00.9]} 1... c5 {[%clk 0:02:59]} 2. Nf3 {[%clk 0:03:00.8]} 2...
e6 {[%clk 0:02:59.7]} 3. d4 {[%clk 0:03:01.1]} 3... cxd4 {[%clk 0:03:00.6]} 4.
Nxd4 {[%clk 0:03:01.8]} 4... Nf6 {[%clk 0:03:00.6]} 5. Nc3 {[%clk 0:03:01.5]}
5... d6 {[%clk 0:03:01.3]} 6. Be3 {[%clk 0:02:59.3]} 6... a6 {[%clk 0:02:59.5]}
7. g4 {[%clk 0:02:58.8]} 7... h6 {[%clk 0:02:59.4]} 8. h4 {[%clk 0:02:54.5]}
8... Nfd7 {[%clk 0:02:58.5]} 9. Qd2 {[%clk 0:02:52]} 9... b5 {[%clk 0:02:58.6]}
10. a3 {[%clk 0:02:48.7]} 10... Bb7 {[%clk 0:02:59.1]} 11. O-O-O {[%clk
0:02:47]} 11... Nc6 {[%clk 0:02:58.6]} 12. f3 {[%clk 0:02:45.3]} 12... Nce5
{[%clk 0:02:56.9]} 13. Be2 {[%clk 0:02:40.6]} 13... Rc8 {[%clk 0:02:54.6]} 14.
g5 {[%clk 0:02:27.5]} 14... hxg5 {[%clk 0:02:27.9]} 15. hxg5 {[%clk 0:02:27.1]}
15... Rxh1 {[%clk 0:02:28.4]} 16. Rxh1 {[%clk 0:02:27.7]} 16... Nb6 {[%clk
0:02:21.7]} 17. Rh8 {[%clk 0:02:21.1]} 17... Nbc4 {[%clk 0:02:13.3]} 18. Bxc4
{[%clk 0:02:20.3]} 18... Nxc4 {[%clk 0:02:14.2]} 19. Qd3 {[%clk 0:02:18.5]}
19... Nxe3 {[%clk 0:02:13.5]} 20. Qxe3 {[%clk 0:02:18.8]} 20... Qe7 {[%clk
0:01:51.7]} 21. f4 {[%clk 0:02:12.2]} 21... g6 {[%clk 0:01:49.8]} 22. Nf3 {[%clk
0:02:02.2]} 22... Qc7 {[%clk 0:01:32.4]} 23. Qd4 {[%clk 0:01:51.9]} 23... Qe7
{[%clk 0:01:14.6]} 24. Nh2 {[%clk 0:01:44.8]} 24... Kd7 {[%clk 0:01:06.7]} 25.
Rh7 {[%clk 0:01:41.1]} 25... Rc7 {[%clk 0:00:51.2]} 26. Ng4 {[%clk 0:01:38.8]}
26... Kc8 {[%clk 0:00:51.3]} 27. Nf6 {[%clk 0:01:32.9]} 27... Kb8 {[%clk
0:00:49.3]} 28. Rh8 {[%clk 0:01:19.1]} 28... Rc8 {[%clk 0:00:49.4]} 29. Rg8
{[%clk 0:01:19.3]} 29... Qc7 {[%clk 0:00:46.3]} 30. b4 {[%clk 0:01:00.9]} 30...
Be7 {[%clk 0:00:33.8]} 31. Rxc8+ {[%clk 0:00:59.6]} 31... Qxc8 {[%clk
0:00:34.7]} 32. Kb2 {[%clk 0:00:58.5]} 32... Qc7 {[%clk 0:00:32.7]} 33. e5
{[%clk 0:00:55.2]} 33... dxe5 {[%clk 0:00:27.5]} 34. Nd7+ {[%clk 0:00:48.4]}
34... Kc8 {[%clk 0:00:27.9]} 35. Nxe5 {[%clk 0:00:48.5]} 35... Bd6 {[%clk
0:00:27.7]} 36. Nxf7 {[%clk 0:00:44.2]} 36... Bxf4 {[%clk 0:00:27.8]} 37. Qf6
{[%clk 0:00:39.3]} 37... e5 {[%clk 0:00:15]} 38. Qxg6 {[%clk 0:00:28.4]} 38...
Kb8 {[%clk 0:00:14]} 39. Qf6 {[%clk 0:00:24]} 39... Qc4 {[%clk 0:00:09.8]} 40.
Nxe5 {[%clk 0:00:20.5]} 40... Qf1 {[%clk 0:00:09.5]} 41. Nd3 {[%clk 0:00:18.3]}
1-0

[Event "Late-Titled-Tuesday-Blitz-March-05-2024"]
[Site "Chess.com"]
[Date "2024.03.05"]
[Round "8"]
[White "Antipov_Mikhail_Al"]
[Black "manitodeplomo"]
[Result "1-0"]
[WhiteElo "2938"]
[BlackElo "2721"]
[TimeControl "180+1"]
[EndTime "15:25:34 PST"]
[Termination "Antipov_Mikhail_Al won by resignation"]

1. e4 {[%clk 0:03:00.9]} 1... e6 {[%clk 0:02:59.8]} 2. d4 {[%clk 0:03:00.9]}
2... d5 {[%clk 0:02:59.8]} 3. Nd2 {[%clk 0:03:01.7]} 3... c5 {[%clk 0:02:59.1]}
4. Ngf3 {[%clk 0:03:02.1]} 4... cxd4 {[%clk 0:02:58.6]} 5. exd5 {[%clk
0:03:02.7]} 5... Qxd5 {[%clk 0:02:58]} 6. Bc4 {[%clk 0:03:03.3]} 6... Qd8 {[%clk
0:02:56.9]} 7. O-O {[%clk 0:03:03]} 7... Nc6 {[%clk 0:02:56.8]} 8. Nb3 {[%clk
0:03:03.4]} 8... Nf6 {[%clk 0:02:57.1]} 9. Nbxd4 {[%clk 0:03:00.7]} 9... Nxd4
{[%clk 0:02:58]} 10. Qxd4 {[%clk 0:03:01.3]} 10... Qxd4 {[%clk 0:02:57.8]} 11.
Nxd4 {[%clk 0:03:02.2]} 11... Bc5 {[%clk 0:02:57]} 12. Nb3 {[%clk 0:02:52.6]}
12... Bd6 {[%clk 0:02:56.1]} 13. Rd1 {[%clk 0:02:50]} 13... Ke7 {[%clk
0:02:55.7]} 14. Re1 {[%clk 0:02:48.3]} 14... Bd7 {[%clk 0:02:46.1]} 15. Nd4
{[%clk 0:02:47.6]} 15... g6 {[%clk 0:02:41.8]} 16. b3 {[%clk 0:02:41.4]} 16...
Rhc8 {[%clk 0:02:34.2]} 17. Bg5 {[%clk 0:02:39.2]} 17... Rc5 {[%clk 0:02:22.2]}
18. h4 {[%clk 0:02:31.9]} 18... b5 {[%clk 0:02:14.8]} 19. Bd3 {[%clk 0:02:31.8]}
19... Rac8 {[%clk 0:02:10.6]} 20. Rad1 {[%clk 0:02:31.3]} 20... a6 {[%clk
0:02:08.5]} 21. g3 {[%clk 0:02:28.9]} 21... Re5 {[%clk 0:02:04.1]} 22. Be2
{[%clk 0:02:17.2]} 22... Bb4 {[%clk 0:01:55.9]} 23. Rf1 {[%clk 0:02:14.6]} 23...
Bc3 {[%clk 0:01:55.5]} 24. Bf3 {[%clk 0:02:14.4]} 24... Rec5 {[%clk 0:01:28.5]}
25. Rd3 {[%clk 0:01:55.7]} 25... e5 {[%clk 0:01:09.9]} 26. Ne2 {[%clk
0:01:52.7]} 26... Bf5 {[%clk 0:01:05.2]} 27. Re3 {[%clk 0:01:44.8]} 27... Ke6
{[%clk 0:01:05.2]} 28. Rd1 {[%clk 0:01:37.5]} 28... Bxc2 {[%clk 0:00:52.3]} 29.
Nf4+ {[%clk 0:01:31.5]} 29... Kf5 {[%clk 0:00:52]} 30. Rd6 {[%clk 0:01:30.7]}
30... e4 {[%clk 0:00:44.6]} 31. Bg2 {[%clk 0:01:03.3]} 31... Be5 {[%clk
0:00:27.2]} 32. Rxa6 {[%clk 0:00:43.3]} 32... Ng4 {[%clk 0:00:22.7]} 33. f3
{[%clk 0:00:32.7]} 33... exf3 {[%clk 0:00:13.3]} 34. Rxf3 {[%clk 0:00:32]} 34...
Be4 {[%clk 0:00:10.5]} 35. Rf1 {[%clk 0:00:31.6]} 35... Bxg2 {[%clk 0:00:10.7]}
36. Nxg2+ {[%clk 0:00:31.4]} 36... Ke4 {[%clk 0:00:09.6]} 37. Rxf7 {[%clk
0:00:28.9]} 37... Bxg3 {[%clk 0:00:08.9]} 38. Re6+ {[%clk 0:00:26.7]} 38... Re5
{[%clk 0:00:08.3]} 39. Rxe5+ {[%clk 0:00:25]} 39... Bxe5 {[%clk 0:00:08.1]} 40.
Rxh7 {[%clk 0:00:25.1]} 40... Rc2 {[%clk 0:00:07.9]} 41. Rf7 {[%clk 0:00:17.1]}
41... Bd4+ {[%clk 0:00:06.7]} 42. Kh1 {[%clk 0:00:14.3]} 42... Rxa2 {[%clk
0:00:06.2]} 43. Rf4+ {[%clk 0:00:14.4]} 43... Kd3 {[%clk 0:00:04.7]} 44. Rxg4
{[%clk 0:00:15.3]} 44... Be5 {[%clk 0:00:05.2]} 45. Ne1+ {[%clk 0:00:13.8]}
45... Ke2 {[%clk 0:00:05.1]} 46. Rg2+ {[%clk 0:00:13.4]} 46... Kf1 {[%clk
0:00:05.1]} 47. Rxa2 {[%clk 0:00:14.3]} 1-0

[Event "Late-Titled-Tuesday-Blitz-March-05-2024"]
[Site "Chess.com"]
[Date "2024.03.05"]
[Round "8"]
[White "MathiasWomacka"]
[Black "LikeWater"]
[Result "1-0"]
[WhiteElo "2553"]
[BlackElo "2674"]
[TimeControl "180+1"]
[EndTime "15:25:36 PST"]
[Termination "MathiasWomacka won on time"]

1. e4 {[%clk 0:03:00.9]} 1... c6 {[%clk 0:02:59.1]} 2. d4 {[%clk 0:02:59.9]}
2... d5 {[%clk 0:02:59.2]} 3. Nd2 {[%clk 0:02:59.2]} 3... g6 {[%clk 0:02:53.4]}
4. h3 {[%clk 0:02:56.1]} 4... Bg7 {[%clk 0:02:52.9]} 5. Ngf3 {[%clk 0:02:56]}
5... Nh6 {[%clk 0:02:47.9]} 6. Be2 {[%clk 0:02:48.7]} 6... f6 {[%clk 0:02:47.6]}
7. O-O {[%clk 0:02:47.4]} 7... Nf7 {[%clk 0:02:47]} 8. c4 {[%clk 0:02:46.9]}
8... e6 {[%clk 0:02:24.9]} 9. b3 {[%clk 0:02:44.2]} 9... O-O {[%clk 0:02:22.5]}
10. Ba3 {[%clk 0:02:42.4]} 10... Re8 {[%clk 0:02:23]} 11. Re1 {[%clk 0:02:37.4]}
11... dxe4 {[%clk 0:02:13.5]} 12. Nxe4 {[%clk 0:02:36.7]} 12... f5 {[%clk
0:02:14.4]} 13. Nc3 {[%clk 0:02:06.8]} 13... Nd7 {[%clk 0:02:11.6]} 14. Rc1
{[%clk 0:02:03.6]} 14... e5 {[%clk 0:02:11.7]} 15. dxe5 {[%clk 0:01:41.2]} 15...
Ndxe5 {[%clk 0:02:12.6]} 16. Nxe5 {[%clk 0:01:40.6]} 16... Bxe5 {[%clk 0:02:12]}
17. Qxd8 {[%clk 0:01:37.1]} 17... Rxd8 {[%clk 0:02:12.9]} 18. Bf3 {[%clk
0:01:35.5]} 18... Be6 {[%clk 0:02:06.4]} 19. Na4 {[%clk 0:01:25]} 19... Rd2
{[%clk 0:01:54.2]} 20. Nc5 {[%clk 0:01:11.7]} 20... Rxa2 {[%clk 0:01:52.7]} 21.
Nxe6 {[%clk 0:01:07.5]} 21... Rxa3 {[%clk 0:01:51]} 22. b4 {[%clk 0:01:06.3]}
22... Re8 {[%clk 0:01:27.8]} 23. Nc5 {[%clk 0:01:02.3]} 23... Re7 {[%clk
0:01:28.4]} 24. b5 {[%clk 0:00:59.5]} 24... b6 {[%clk 0:01:27.3]} 25. Na6 {[%clk
0:00:46.7]} 25... c5 {[%clk 0:01:26.5]} 26. Nb8 {[%clk 0:00:44.8]} 26... Kf8
{[%clk 0:01:00]} 27. Nc6 {[%clk 0:00:43.5]} 27... Re8 {[%clk 0:00:59.8]} 28. Bd5
{[%clk 0:00:42.5]} 28... Bd4 {[%clk 0:00:56.8]} 29. Rxe8+ {[%clk 0:00:38.2]}
29... Kxe8 {[%clk 0:00:57.7]} 30. Re1+ {[%clk 0:00:38]} 30... Kf8 {[%clk
0:00:57.9]} 31. Re7 {[%clk 0:00:36]} 31... Ra1+ {[%clk 0:00:44.8]} 32. Kh2
{[%clk 0:00:34]} 32... Ng5 {[%clk 0:00:43.5]} 33. h4 {[%clk 0:00:27.8]} 33...
Bf6 {[%clk 0:00:19]} 34. Rb7 {[%clk 0:00:23.5]} 34... Ne4 {[%clk 0:00:12]} 35.
Rf7+ {[%clk 0:00:14.6]} 35... Ke8 {[%clk 0:00:11.7]} 36. Rxh7 {[%clk 0:00:12.3]}
36... Nxf2 {[%clk 0:00:10.4]} 37. Be6 {[%clk 0:00:11.4]} 37... Ng4+ {[%clk
0:00:08.4]} 38. Kg3 {[%clk 0:00:11.2]} 38... Ra3+ {[%clk 0:00:04]} 39. Kf4
{[%clk 0:00:11.3]} 39... Nf2 {[%clk 0:00:02.3]} 40. Rb7 {[%clk 0:00:09.7]} 40...
Nd3+ {[%clk 0:00:02.2]} 41. Ke3 {[%clk 0:00:09.2]} 1-0

[Event "Late-Titled-Tuesday-Blitz-March-05-2024"]
[Site "Chess.com"]
[Date "2024.03.05"]
[Round "8"]
[White "ChessSwole"]
[Black "Pelusiansky"]
[Result "1-0"]
[WhiteElo "2730"]
[BlackElo "2572"]
[TimeControl "180+1"]
[EndTime "15:25:39 PST"]
[Termination "ChessSwole won on time"]

1. d4 {[%clk 0:03:00.9]} 1... d5 {[%clk 0:02:59]} 2. c4 {[%clk 0:03:00.4]} 2...
e6 {[%clk 0:02:58.8]} 3. Nf3 {[%clk 0:02:58.9]} 3... a6 {[%clk 0:02:56.6]} 4.
Bg5 {[%clk 0:02:56.7]} 4... Be7 {[%clk 0:02:47.5]} 5. Bxe7 {[%clk 0:02:57]} 5...
Nxe7 {[%clk 0:02:43.5]} 6. Nbd2 {[%clk 0:02:57.1]} 6... O-O {[%clk 0:02:43.1]}
7. e3 {[%clk 0:02:51.1]} 7... Nd7 {[%clk 0:02:34]} 8. Rc1 {[%clk 0:02:49.7]}
8... b6 {[%clk 0:02:27.4]} 9. cxd5 {[%clk 0:02:49]} 9... exd5 {[%clk 0:02:27.3]}
10. Qc2 {[%clk 0:02:42.3]} 10... c5 {[%clk 0:02:26.8]} 11. dxc5 {[%clk
0:02:39.6]} 11... bxc5 {[%clk 0:02:27.7]} 12. Be2 {[%clk 0:02:34.6]} 12... Qb6
{[%clk 0:02:20.9]} 13. O-O {[%clk 0:02:29.6]} 13... Rb8 {[%clk 0:02:19]} 14. b3
{[%clk 0:02:27.4]} 14... Bb7 {[%clk 0:02:13.2]} 15. e4 {[%clk 0:02:26]} 15... h6
{[%clk 0:01:46]} 16. exd5 {[%clk 0:02:24.6]} 16... Nxd5 {[%clk 0:01:45.4]} 17.
Rfd1 {[%clk 0:02:13.5]} 17... Nb4 {[%clk 0:01:39.6]} 18. Qf5 {[%clk 0:02:06.4]}
18... Nf6 {[%clk 0:01:29.7]} 19. Nc4 {[%clk 0:01:55.6]} 19... Qc7 {[%clk
0:01:25.8]} 20. Nd6 {[%clk 0:01:34.9]} 20... Bxf3 {[%clk 0:01:12]} 21. Bxf3
{[%clk 0:01:31.4]} 21... Nxa2 {[%clk 0:01:03.7]} 22. Rxc5 {[%clk 0:01:30.6]}
22... Qe7 {[%clk 0:01:00.7]} 23. Re5 {[%clk 0:01:15.3]} 23... Qc7 {[%clk
0:00:55.6]} 24. Ra1 {[%clk 0:01:01]} 24... Nb4 {[%clk 0:00:48.4]} 25. Nc4 {[%clk
0:00:48.3]} 25... Rfd8 {[%clk 0:00:39.6]} 26. g3 {[%clk 0:00:45.5]} 26... Nd3
{[%clk 0:00:38.1]} 27. Re3 {[%clk 0:00:38.5]} 27... Nc5 {[%clk 0:00:28.9]} 28.
Ne5 {[%clk 0:00:32.5]} 28... Rxb3 {[%clk 0:00:20]} 29. Rxb3 {[%clk 0:00:20.5]}
29... Nxb3 {[%clk 0:00:20.9]} 30. Rxa6 {[%clk 0:00:21.1]} 30... Nd2 {[%clk
0:00:19.4]} 31. Be2 {[%clk 0:00:14.5]} 31... Re8 {[%clk 0:00:16.5]} 32. f4
{[%clk 0:00:09.9]} 32... Qc1+ {[%clk 0:00:13.4]} 33. Kg2 {[%clk 0:00:10]} 33...
Nde4 {[%clk 0:00:12]} 34. Ra2 {[%clk 0:00:06.9]} 34... Qe3 {[%clk 0:00:08.9]}
35. Bf3 {[%clk 0:00:06.8]} 35... Qb3 {[%clk 0:00:06.6]} 36. Re2 {[%clk
0:00:05.9]} 36... Nc3 {[%clk 0:00:04.6]} 37. Rf2 {[%clk 0:00:04]} 37... Qb8
{[%clk 0:00:02.7]} 38. Nc6 {[%clk 0:00:03.6]} 38... Qc7 {[%clk 0:00:02.4]} 39.
Qd3 {[%clk 0:00:03.5]} 39... Na4 {[%clk 0:00:01.2]} 40. Ne5 {[%clk 0:00:03.8]}
40... Nc5 {[%clk 0:00:01.5]} 41. Qc4 {[%clk 0:00:04.5]} 1-0

[Event "Late-Titled-Tuesday-Blitz-March-05-2024"]
[Site "Chess.com"]
[Date "2024.03.05"]
[Round "8"]
[White "JoakimVonAnd"]
[Black "kagg1125"]
[Result "1-0"]
[WhiteElo "2712"]
[BlackElo "2536"]
[TimeControl "180+1"]
[EndTime "15:25:39 PST"]
[Termination "JoakimVonAnd won by resignation"]

1. d4 {[%clk 0:03:00.9]} 1... Nf6 {[%clk 0:03:00]} 2. Nf3 {[%clk 0:03:00.4]}
2... g6 {[%clk 0:02:59.2]} 3. Bf4 {[%clk 0:02:58.4]} 3... Bg7 {[%clk 0:02:59.3]}
4. e3 {[%clk 0:02:58.7]} 4... O-O {[%clk 0:02:59.1]} 5. Be2 {[%clk 0:02:58.8]}
5... c5 {[%clk 0:03:00]} 6. c3 {[%clk 0:02:58.5]} 6... d6 {[%clk 0:02:59.7]} 7.
O-O {[%clk 0:02:59]} 7... Qb6 {[%clk 0:03:00.1]} 8. Qb3 {[%clk 0:02:57.8]} 8...
Be6 {[%clk 0:03:00]} 9. Qxb6 {[%clk 0:02:57.6]} 9... axb6 {[%clk 0:03:00.9]} 10.
a3 {[%clk 0:02:58.1]} 10... Nh5 {[%clk 0:02:42.4]} 11. Bg5 {[%clk 0:02:56.5]}
11... f6 {[%clk 0:02:40.4]} 12. Bh4 {[%clk 0:02:56.6]} 12... g5 {[%clk 0:02:41]}
13. Nfd2 {[%clk 0:02:41.3]} 13... gxh4 {[%clk 0:02:39.8]} 14. Bxh5 {[%clk
0:02:41]} 14... f5 {[%clk 0:02:22.9]} 15. Bf3 {[%clk 0:02:40.5]} 15... Ra7
{[%clk 0:02:18.3]} 16. h3 {[%clk 0:02:35.5]} 16... Nd7 {[%clk 0:02:14.5]} 17.
Be2 {[%clk 0:02:17.7]} 17... f4 {[%clk 0:02:12.3]} 18. Bc4 {[%clk 0:02:15.6]}
18... d5 {[%clk 0:02:06.1]} 19. Bd3 {[%clk 0:02:05.3]} 19... fxe3 {[%clk
0:01:55.3]} 20. fxe3 {[%clk 0:02:05]} 20... Raa8 {[%clk 0:01:46]} 21. Rxf8+
{[%clk 0:01:56.7]} 21... Rxf8 {[%clk 0:01:44.2]} 22. Nf3 {[%clk 0:01:50]} 22...
Bh6 {[%clk 0:01:43.4]} 23. Kf2 {[%clk 0:01:49.1]} 23... Bf7 {[%clk 0:01:40.6]}
24. Nbd2 {[%clk 0:01:48.1]} 24... Bh5 {[%clk 0:01:31.8]} 25. Re1 {[%clk
0:01:44.1]} 25... e5 {[%clk 0:01:32]} 26. Bb5 {[%clk 0:01:18.2]} 26... cxd4
{[%clk 0:01:01.7]} 27. cxd4 {[%clk 0:01:08.2]} 27... Nf6 {[%clk 0:00:32.4]} 28.
dxe5 {[%clk 0:01:04.5]} 28... Ne4+ {[%clk 0:00:32.6]} 29. Kg1 {[%clk 0:01:04.6]}
29... Nxd2 {[%clk 0:00:28.4]} 30. Nxd2 {[%clk 0:01:05.5]} 30... d4 {[%clk
0:00:28.5]} 31. Nf1 {[%clk 0:00:57.2]} 31... dxe3 {[%clk 0:00:17.5]} 32. Nxe3
{[%clk 0:00:57.3]} 32... Bf4 {[%clk 0:00:17.8]} 33. e6 {[%clk 0:00:53.6]} 33...
Bg3 {[%clk 0:00:16.2]} 34. Rf1 {[%clk 0:00:48.2]} 34... Rxf1+ {[%clk 0:00:13.6]}
35. Kxf1 {[%clk 0:00:45.4]} 35... Bd6 {[%clk 0:00:08.7]} 36. Nf5 {[%clk
0:00:45.1]} 36... Bc5 {[%clk 0:00:03.7]} 37. e7 {[%clk 0:00:44.6]} 37... Bxe7
{[%clk 0:00:01.6]} 38. Nxe7+ {[%clk 0:00:45.5]} 38... Kf7 {[%clk 0:00:02]} 39.
Nd5 {[%clk 0:00:45]} 39... Ke6 {[%clk 0:00:02.9]} 40. Nxb6 {[%clk 0:00:44.9]}
40... Kd6 {[%clk 0:00:03.8]} 41. Be2 {[%clk 0:00:42.9]} 41... Bg6 {[%clk
0:00:03.6]} 42. Nc4+ {[%clk 0:00:42.7]} 42... Kd5 {[%clk 0:00:03.5]} 43. Na5
{[%clk 0:00:42.4]} 43... b6 {[%clk 0:00:03.3]} 44. Nc4 {[%clk 0:00:42.3]} 44...
b5 {[%clk 0:00:03.5]} 45. Na5 {[%clk 0:00:39.6]} 45... Kd4 {[%clk 0:00:04.1]}
46. Bxb5 {[%clk 0:00:39.1]} 46... h5 {[%clk 0:00:04.5]} 47. Be2 {[%clk 0:00:39]}
47... Ke3 {[%clk 0:00:04.7]} 48. Nc4+ {[%clk 0:00:38.9]} 48... Kf4 {[%clk
0:00:04.9]} 49. b4 {[%clk 0:00:38.9]} 49... Kg3 {[%clk 0:00:03.9]} 50. b5 {[%clk
0:00:38.3]} 50... Kh2 {[%clk 0:00:03.7]} 51. b6 {[%clk 0:00:37.9]} 51... Be4
{[%clk 0:00:04]} 52. Ne3 {[%clk 0:00:37.3]} 52... Kh1 {[%clk 0:00:02.2]} 53. a4
{[%clk 0:00:37]} 53... Kh2 {[%clk 0:00:02.4]} 54. a5 {[%clk 0:00:37.2]} 54...
Kg3 {[%clk 0:00:03.3]} 55. a6 {[%clk 0:00:37.2]} 55... Kf4 {[%clk 0:00:04.2]}
56. b7 {[%clk 0:00:37.1]} 56... Kxe3 {[%clk 0:00:04.8]} 57. b8=Q {[%clk
0:00:37.2]} 57... Bb7 {[%clk 0:00:04.2]} 1-0